Workbook

Sheet 파티 개요
B3: 파티 개요
B6: 이벤트 | D6: 손님 요약 | H6: ="미확인 참석 여부 회신 수: "&OutstandingRSVPs -> 미확인 참석 여부 회신 수: 2
B7: 할머니의 75번째 생신 | D7: 참석 여부 회신 개요 | F7: 손님 한 명당 비용 | H7: 예산액
D8: 확인한 손님 수 | E8: 총 확인 인원 | F8: 식비 | G8: 기타 | H8: 합계
B9: 날짜 | D9: 어른 | E9: =SUMIF(손님_표[참석 여부],"=예",손님_표[어른]) -> 26 | F9: =음식_표[[#Totals],[어른 한 명당 비용]] -> ₩12,690 | G9: =EssentialCostPerGuest -> ₩18,696 | H9: =(참석자_요약[[#This Row],[식비]]+참석자_요약[[#This Row],[기타]])*AdultTotal -> ₩816,029
B10: 2011-06-14 | D10: 어린이 | E10: =SUMIF(손님_표[참석 여부],"=예",손님_표[어린이]) -> 20 | F10: =음식_표[[#Totals],[어린이 한 명당 비용]] -> ₩7,253 | G10: =EssentialCostPerGuest -> ₩18,696 | H10: =(참석자_요약[[#This Row],[식비]]+참석자_요약[[#This Row],[기타]])*ChildrenTotal -> ₩518,971
D11: 합계 | E11: =SUBTOTAL(109,참석자_요약[총 확인 인원]) -> 46 | F11: ="Avg. "&TEXT(SUBTOTAL(101,참석자_요약[식비]),"₩#,##0") -> Avg. ₩9,971 | G11: ="Avg. "&TEXT(SUBTOTAL(101,참석자_요약[기타]),"₩#,##0") -> Avg. ₩18,696 | H11: =SUBTOTAL(109,참석자_요약[합계]) -> ₩1,335,000
B12: 시간
B13: 오후 2-4시
B15: 위치
B16: 고모님 댁 | D16: 예산 요약
D17: 항목 | E17: 개수 | F17: 예산액 | G17: 총 비용 | H17: 차액
D18: 음식 및 음료 | E18: =COUNTA(음식_표[음식 또는 음료 항목]) -> 18 | F18: ₩500,000 | G18: =음식_표[[#Totals],[총 비용]] -> ₩475,000 | H18: =예산_개요[[#This Row],[예산액]]-예산_개요[[#This Row],[총 비용]] -> ₩25,000
D19: =Table1Header -> 장비 & 물품 | E19: =COUNTA(예산_표_1[장비 & 물품]) -> 7 | F19: ₩400,000 | G19: =예산_표_1[[#Totals],[비용]] -> ₩400,000 | H19: =예산_개요[[#This Row],[예산액]]-예산_개요[[#This Row],[총 비용]] -> ₩0
D20: =Table2Header -> 장식 | E20: =COUNTA(예산_표_2[장식]) -> 4 | F20: ₩150,000 | G20: =예산_표_2[[#Totals],[비용]] -> ₩175,000 | H20: =예산_개요[[#This Row],[예산액]]-예산_개요[[#This Row],[총 비용]] -> (₩25,000)
D21: =Table3Header -> 구매 여부 | E21: =COUNTA(예산_표_3[기타]) -> 4 | F21: ₩300,000 | G21: =예산_표_3[[#Totals],[비용]] -> ₩285,000 | H21: =예산_개요[[#This Row],[예산액]]-예산_개요[[#This Row],[총 비용]] -> ₩15,000
D22: 합계 | E22: =SUBTOTAL(109,예산_개요[개수]) -> 33 | F22: =SUBTOTAL(109,예산_개요[예산액]) -> ₩1,350,000 | G22: =SUBTOTAL(109,예산_개요[총 비용]) -> ₩1,335,000 | H22: =SUBTOTAL(109,예산_개요[차액]) -> ₩15,000

Sheet 손님 목록
B3: 손님 목록
B7: 이름 | C7: 주소 | D7: 구/군/시 | E7: 시/도 | F7: 우편 번호 | G7: 전화 번호 | H7: 전자 메일 | I7: 참석 여부 | J7: 어린이 | K7: 어른 | L7: 합계
B8: 가족 1 | C8: 주소 1 | D8: 구/군/시 1 | E8: 시/도 1 | F8: 우편 번호 1 | G8: 전화 번호 1 | H8: 전자 메일 1 | I8: 아니요 | J8: 2 | K8: 2 | L8: =SUM(손님_표[[#This Row],[어린이]]:손님_표[[#This Row],[어른]]) -> 4
B9: 가족 2 | C9: 주소 2 | D9: 구/군/시 2 | E9: 시/도 2 | F9: 우편 번호 2 | G9: 전화 번호 2 | H9: 전자 메일 2 | I9: 예 | J9: 1 | K9: 1 | L9: =SUM(손님_표[[#This Row],[어린이]]:손님_표[[#This Row],[어른]]) -> 2
B10: 가족 3 | C10: 주소 3 | D10: 구/군/시 3 | E10: 시/도 3 | F10: 우편 번호 3 | G10: 전화 번호 3 | H10: 전자 메일 3 | I10: 예 | J10: 3 | K10: 3 | L10: =SUM(손님_표[[#This Row],[어린이]]:손님_표[[#This Row],[어른]]) -> 6
B11: 가족 4 | C11: 주소 4 | D11: 구/군/시 4 | E11: 시/도 4 | F11: 우편 번호 4 | G11: 전화 번호 4 | H11: 전자 메일 4 | K11: 2 | L11: =SUM(손님_표[[#This Row],[어린이]]:손님_표[[#This Row],[어른]]) -> 2
B12: 가족 5 | C12: 주소 5 | D12: 구/군/시 5 | E12: 시/도 5 | F12: 우편 번호 5 | G12: 전화 번호 5 | H12: 전자 메일 5 | I12: 예 | J12: 4 | K12: 3 | L12: =SUM(손님_표[[#This Row],[어린이]]:손님_표[[#This Row],[어른]]) -> 7
B13: 가족 6 | C13: 주소 6 | D13: 구/군/시 6 | E13: 시/도 6 | F13: 우편 번호 6 | G13: 전화 번호 6 | H13: 전자 메일 6 | I13: 예 | J13: 2 | K13: 2 | L13: =SUM(손님_표[[#This Row],[어린이]]:손님_표[[#This Row],[어른]]) -> 4
B14: 가족 7 | C14: 주소 7 | D14: 구/군/시 7 | E14: 시/도 7 | F14: 우편 번호 7 | G14: 전화 번호 7 | H14: 전자 메일 7 | I14: 예 | J14: 1 | K14: 4 | L14: =SUM(손님_표[[#This Row],[어린이]]:손님_표[[#This Row],[어른]]) -> 5
B15: 가족 8 | C15: 주소 8 | D15: 구/군/시 8 | E15: 시/도 8 | F15: 우편 번호 8 | G15: 전화 번호 8 | H15: 전자 메일 8 | I15: 아니요 | J15: 5 | K15: 3 | L15: =SUM(손님_표[[#This Row],[어린이]]:손님_표[[#This Row],[어른]]) -> 8
B16: 가족 9 | C16: 주소 9 | D16: 구/군/시 9 | E16: 시/도 9 | F16: 우편 번호 9 | G16: 전화 번호 9 | H16: 전자 메일 9 | I16: 예 | J16: 3 | K16: 2 | L16: =SUM(손님_표[[#This Row],[어린이]]:손님_표[[#This Row],[어른]]) -> 5
B17: 가족 10 | C17: 주소 10 | D17: 구/군/시 10 | E17: 시/도 10 | F17: 우편 번호 10 | G17: 전화 번호 10 | H17: 전자 메일 10 | I17: 예 | K17: 4 | L17: =SUM(손님_표[[#This Row],[어린이]]:손님_표[[#This Row],[어른]]) -> 4
B18: 가족 11 | C18: 주소 11 | D18: 구/군/시 11 | E18: 시/도 11 | F18: 우편 번호 11 | G18: 전화 번호 11 | H18: 전자 메일 11 | I18: 예 | J18: 3 | K18: 5 | L18: =SUM(손님_표[[#This Row],[어린이]]:손님_표[[#This Row],[어른]]) -> 8
B19: 가족 12 | C19: 주소 12 | D19: 구/군/시 12 | E19: 시/도 12 | F19: 우편 번호 12 | G19: 전화 번호 12 | H19: 전자 메일 12 | I19: 아니요 | J19: 2 | K19: 3 | L19: =SUM(손님_표[[#This Row],[어린이]]:손님_표[[#This Row],[어른]]) -> 5
B20: 가족 13 | C20: 주소 13 | D20: 구/군/시 13 | E20: 시/도 13 | F20: 우편 번호 13 | G20: 전화 번호 13 | H20: 전자 메일 13 | I20: 예 | J20: 3 | K20: 2 | L20: =SUM(손님_표[[#This Row],[어린이]]:손님_표[[#This Row],[어른]]) -> 5
B21: 가족 14 | C21: 주소 14 | D21: 구/군/시 14 | E21: 시/도 14 | F21: 우편 번호 14 | G21: 전화 번호 14 | H21: 전자 메일 14 | I21: 아니요 | K21: 1 | L21: =SUM(손님_표[[#This Row],[어린이]]:손님_표[[#This Row],[어른]]) -> 1
B22: 가족 15 | C22: 주소 15 | D22: 구/군/시 15 | E22: 시/도 15 | F22: 우편 번호 15 | G22: 전화 번호 15 | H22: 전자 메일 15 | K22: 2 | L22: =SUM(손님_표[[#This Row],[어린이]]:손님_표[[#This Row],[어른]]) -> 2

Sheet 음식 & 음료
B3: 음식 & 음료
B5: 총 참석 인원을 기준으로 총 개수와 1인분당 비용을 자동으로 계산하려면 비용 및 예상 분량을 입력하세요.
B6: 음식 또는 음료 항목 | C6: 총 비용 | D6: 어린이 한 명당 분량 | E6: 어른 한 명당 분량 | F6: 총 분량 | G6: 1인분당 비용 | H6: 어린이 한 명당 비용 | I6: 어른 한 명당 비용 | J6: 참고 사항
B7: 탄산음료 | C7: ₩15,000 | D7: 0.5 | E7: 2 | F7: =(음식_표[[#This Row],[어린이 한 명당 분량]]*ChildrenTotal)+(음식_표[[#This Row],[어른 한 명당 분량]]*AdultTotal) -> 62 | G7: =IFERROR(음식_표[[#This Row],[총 비용]]/음식_표[[#This Row],[총 분량]],"") -> ₩242 | H7: =IFERROR(음식_표[[#This Row],[1인분당 비용]]*음식_표[[#This Row],[어린이 한 명당 분량]],"") -> ₩121 | I7: =IFERROR(음식_표[[#This Row],[1인분당 비용]]*음식_표[[#This Row],[어른 한 명당 분량]],"") -> ₩484 | J7: 2리터 짜리 병
B8: 주스 상자 | C8: ₩15,000 | D8: 2 | E8: 0 | F8: =(음식_표[[#This Row],[어린이 한 명당 분량]]*ChildrenTotal)+(음식_표[[#This Row],[어른 한 명당 분량]]*AdultTotal) -> 40 | G8: =IFERROR(음식_표[[#This Row],[총 비용]]/음식_표[[#This Row],[총 분량]],"") -> ₩375 | H8: =IFERROR(음식_표[[#This Row],[1인분당 비용]]*음식_표[[#This Row],[어린이 한 명당 분량]],"") -> ₩750 | I8: =IFERROR(음식_표[[#This Row],[1인분당 비용]]*음식_표[[#This Row],[어른 한 명당 분량]],"") -> ₩0 | J8: 사과와 백포도
B9: 와인 | C9: ₩50,000 | D9: 0 | E9: 2 | F9: =(음식_표[[#This Row],[어린이 한 명당 분량]]*ChildrenTotal)+(음식_표[[#This Row],[어른 한 명당 분량]]*AdultTotal) -> 52 | G9: =IFERROR(음식_표[[#This Row],[총 비용]]/음식_표[[#This Row],[총 분량]],"") -> ₩962 | H9: =IFERROR(음식_표[[#This Row],[1인분당 비용]]*음식_표[[#This Row],[어린이 한 명당 분량]],"") -> ₩0 | I9: =IFERROR(음식_표[[#This Row],[1인분당 비용]]*음식_표[[#This Row],[어른 한 명당 분량]],"") -> ₩1,923
B10: 케이크 | C10: ₩75,000 | D10: 1 | E10: 1 | F10: =(음식_표[[#This Row],[어린이 한 명당 분량]]*ChildrenTotal)+(음식_표[[#This Row],[어른 한 명당 분량]]*AdultTotal) -> 46 | G10: =IFERROR(음식_표[[#This Row],[총 비용]]/음식_표[[#This Row],[총 분량]],"") -> ₩1,630 | H10: =IFERROR(음식_표[[#This Row],[1인분당 비용]]*음식_표[[#This Row],[어린이 한 명당 분량]],"") -> ₩1,630 | I10: =IFERROR(음식_표[[#This Row],[1인분당 비용]]*음식_표[[#This Row],[어른 한 명당 분량]],"") -> ₩1,630 | J10: 동네 빵집에서 주문
B11: 아이스크림 | C11: ₩20,000 | D11: 1 | E11: 1.5 | F11: =(음식_표[[#This Row],[어린이 한 명당 분량]]*ChildrenTotal)+(음식_표[[#This Row],[어른 한 명당 분량]]*AdultTotal) -> 59 | G11: =IFERROR(음식_표[[#This Row],[총 비용]]/음식_표[[#This Row],[총 분량]],"") -> ₩339 | H11: =IFERROR(음식_표[[#This Row],[1인분당 비용]]*음식_표[[#This Row],[어린이 한 명당 분량]],"") -> ₩339 | I11: =IFERROR(음식_표[[#This Row],[1인분당 비용]]*음식_표[[#This Row],[어른 한 명당 분량]],"") -> ₩508
B12: 푸딩 컵 | C12: ₩15,000 | D12: 1 | E12: 0 | F12: =(음식_표[[#This Row],[어린이 한 명당 분량]]*ChildrenTotal)+(음식_표[[#This Row],[어른 한 명당 분량]]*AdultTotal) -> 20 | G12: =IFERROR(음식_표[[#This Row],[총 비용]]/음식_표[[#This Row],[총 분량]],"") -> ₩750 | H12: =IFERROR(음식_표[[#This Row],[1인분당 비용]]*음식_표[[#This Row],[어린이 한 명당 분량]],"") -> ₩750 | I12: =IFERROR(음식_표[[#This Row],[1인분당 비용]]*음식_표[[#This Row],[어른 한 명당 분량]],"") -> ₩0 | J12: 포장된 컵 구입: 바닐라와 초콜릿
B13: 속 채운 버섯 요리 | C13: ₩32,000 | D13: 1 | E13: 2 | F13: =(음식_표[[#This Row],[어린이 한 명당 분량]]*ChildrenTotal)+(음식_표[[#This Row],[어른 한 명당 분량]]*AdultTotal) -> 72 | G13: =IFERROR(음식_표[[#This Row],[총 비용]]/음식_표[[#This Row],[총 분량]],"") -> ₩444 | H13: =IFERROR(음식_표[[#This Row],[1인분당 비용]]*음식_표[[#This Row],[어린이 한 명당 분량]],"") -> ₩444 | I13: =IFERROR(음식_표[[#This Row],[1인분당 비용]]*음식_표[[#This Row],[어른 한 명당 분량]],"") -> ₩889 | J13: 크림 치즈와 소세지를 채운 버섯 요리
B14: 브루스케타 | C14: ₩22,000 | D14: 0 | E14: 3 | F14: =(음식_표[[#This Row],[어린이 한 명당 분량]]*ChildrenTotal)+(음식_표[[#This Row],[어른 한 명당 분량]]*AdultTotal) -> 78 | G14: =IFERROR(음식_표[[#This Row],[총 비용]]/음식_표[[#This Row],[총 분량]],"") -> ₩282 | H14: =IFERROR(음식_표[[#This Row],[1인분당 비용]]*음식_표[[#This Row],[어린이 한 명당 분량]],"") -> ₩0 | I14: =IFERROR(음식_표[[#This Row],[1인분당 비용]]*음식_표[[#This Row],[어른 한 명당 분량]],"") -> ₩846 | J14: 토마토와 바질
B15: 훈제 연어 | C15: ₩50,000 | D15: 1 | E15: 2 | F15: =(음식_표[[#This Row],[어린이 한 명당 분량]]*ChildrenTotal)+(음식_표[[#This Row],[어른 한 명당 분량]]*AdultTotal) -> 72 | G15: =IFERROR(음식_표[[#This Row],[총 비용]]/음식_표[[#This Row],[총 분량]],"") -> ₩694 | H15: =IFERROR(음식_표[[#This Row],[1인분당 비용]]*음식_표[[#This Row],[어린이 한 명당 분량]],"") -> ₩694 | I15: =IFERROR(음식_표[[#This Row],[1인분당 비용]]*음식_표[[#This Row],[어른 한 명당 분량]],"") -> ₩1,389
B16: 미니 베이글 | C16: ₩20,000 | D16: 1 | E16: 2 | F16: =(음식_표[[#This Row],[어린이 한 명당 분량]]*ChildrenTotal)+(음식_표[[#This Row],[어른 한 명당 분량]]*AdultTotal) -> 72 | G16: =IFERROR(음식_표[[#This Row],[총 비용]]/음식_표[[#This Row],[총 분량]],"") -> ₩278 | H16: =IFERROR(음식_표[[#This Row],[1인분당 비용]]*음식_표[[#This Row],[어린이 한 명당 분량]],"") -> ₩278 | I16: =IFERROR(음식_표[[#This Row],[1인분당 비용]]*음식_표[[#This Row],[어른 한 명당 분량]],"") -> ₩556 | J16: 4봉지 - 모둠
B17: 크림 치즈 | C17: ₩10,000 | D17: 1 | E17: 2 | F17: =(음식_표[[#This Row],[어린이 한 명당 분량]]*ChildrenTotal)+(음식_표[[#This Row],[어른 한 명당 분량]]*AdultTotal) -> 72 | G17: =IFERROR(음식_표[[#This Row],[총 비용]]/음식_표[[#This Row],[총 분량]],"") -> ₩139 | H17: =IFERROR(음식_표[[#This Row],[1인분당 비용]]*음식_표[[#This Row],[어린이 한 명당 분량]],"") -> ₩139 | I17: =IFERROR(음식_표[[#This Row],[1인분당 비용]]*음식_표[[#This Row],[어른 한 명당 분량]],"") -> ₩278 | J17: 큰 통 2개
B18: 케이퍼 | C18: ₩12,000 | D18: 1 | E18: 2 | F18: =(음식_표[[#This Row],[어린이 한 명당 분량]]*ChildrenTotal)+(음식_표[[#This Row],[어른 한 명당 분량]]*AdultTotal) -> 72 | G18: =IFERROR(음식_표[[#This Row],[총 비용]]/음식_표[[#This Row],[총 분량]],"") -> ₩167 | H18: =IFERROR(음식_표[[#This Row],[1인분당 비용]]*음식_표[[#This Row],[어린이 한 명당 분량]],"") -> ₩167 | I18: =IFERROR(음식_표[[#This Row],[1인분당 비용]]*음식_표[[#This Row],[어른 한 명당 분량]],"") -> ₩333 | J18: 3병
B19: 치킨 윙 | C19: ₩45,000 | D19: 2 | E19: 4 | F19: =(음식_표[[#This Row],[어린이 한 명당 분량]]*ChildrenTotal)+(음식_표[[#This Row],[어른 한 명당 분량]]*AdultTotal) -> 144 | G19: =IFERROR(음식_표[[#This Row],[총 비용]]/음식_표[[#This Row],[총 분량]],"") -> ₩313 | H19: =IFERROR(음식_표[[#This Row],[1인분당 비용]]*음식_표[[#This Row],[어린이 한 명당 분량]],"") -> ₩625 | I19: =IFERROR(음식_표[[#This Row],[1인분당 비용]]*음식_표[[#This Row],[어른 한 명당 분량]],"") -> ₩1,250 | J19: 동네 가게에서 구입
B20: 후무스 | C20: ₩10,000 | D20: 4 | E20: 6 | F20: =(음식_표[[#This Row],[어린이 한 명당 분량]]*ChildrenTotal)+(음식_표[[#This Row],[어른 한 명당 분량]]*AdultTotal) -> 236 | G20: =IFERROR(음식_표[[#This Row],[총 비용]]/음식_표[[#This Row],[총 분량]],"") -> ₩42 | H20: =IFERROR(음식_표[[#This Row],[1인분당 비용]]*음식_표[[#This Row],[어린이 한 명당 분량]],"") -> ₩169 | I20: =IFERROR(음식_표[[#This Row],[1인분당 비용]]*음식_표[[#This Row],[어른 한 명당 분량]],"") -> ₩254 | J20: 전날 밤에 준비
B21: 파르메산 피타 칩 | C21: ₩14,000 | D21: 4 | E21: 6 | F21: =(음식_표[[#This Row],[어린이 한 명당 분량]]*ChildrenTotal)+(음식_표[[#This Row],[어른 한 명당 분량]]*AdultTotal) -> 236 | G21: =IFERROR(음식_표[[#This Row],[총 비용]]/음식_표[[#This Row],[총 분량]],"") -> ₩59 | H21: =IFERROR(음식_표[[#This Row],[1인분당 비용]]*음식_표[[#This Row],[어린이 한 명당 분량]],"") -> ₩237 | I21: =IFERROR(음식_표[[#This Row],[1인분당 비용]]*음식_표[[#This Row],[어른 한 명당 분량]],"") -> ₩356 | J21: 전날 밤에 준비
B22: 모둠 채소 | C22: ₩30,000 | D22: 4 | E22: 10 | F22: =(음식_표[[#This Row],[어린이 한 명당 분량]]*ChildrenTotal)+(음식_표[[#This Row],[어른 한 명당 분량]]*AdultTotal) -> 340 | G22: =IFERROR(음식_표[[#This Row],[총 비용]]/음식_표[[#This Row],[총 분량]],"") -> ₩88 | H22: =IFERROR(음식_표[[#This Row],[1인분당 비용]]*음식_표[[#This Row],[어린이 한 명당 분량]],"") -> ₩353 | I22: =IFERROR(음식_표[[#This Row],[1인분당 비용]]*음식_표[[#This Row],[어른 한 명당 분량]],"") -> ₩882 | J22: 당근, 셀러리, 브로콜리, 콜리플라워, 빨간색 및 녹색 피망
B23: 치즈 볼 | C23: ₩15,000 | D23: 5 | E23: 10 | F23: =(음식_표[[#This Row],[어린이 한 명당 분량]]*ChildrenTotal)+(음식_표[[#This Row],[어른 한 명당 분량]]*AdultTotal) -> 360 | G23: =IFERROR(음식_표[[#This Row],[총 비용]]/음식_표[[#This Row],[총 분량]],"") -> ₩42 | H23: =IFERROR(음식_표[[#This Row],[1인분당 비용]]*음식_표[[#This Row],[어린이 한 명당 분량]],"") -> ₩208 | I23: =IFERROR(음식_표[[#This Row],[1인분당 비용]]*음식_표[[#This Row],[어른 한 명당 분량]],"") -> ₩417 | J23: 모둠: 크림 치즈, 견과류가 들어간 치즈
B24: 크래커 | C24: ₩25,000 | D24: 5 | E24: 10 | F24: =(음식_표[[#This Row],[어린이 한 명당 분량]]*ChildrenTotal)+(음식_표[[#This Row],[어른 한 명당 분량]]*AdultTotal) -> 360 | G24: =IFERROR(음식_표[[#This Row],[총 비용]]/음식_표[[#This Row],[총 분량]],"") -> ₩69 | H24: =IFERROR(음식_표[[#This Row],[1인분당 비용]]*음식_표[[#This Row],[어린이 한 명당 분량]],"") -> ₩347 | I24: =IFERROR(음식_표[[#This Row],[1인분당 비용]]*음식_표[[#This Row],[어른 한 명당 분량]],"") -> ₩694 | J24: 모둠
B25: 합계 | C25: =SUBTOTAL(109,음식_표[총 비용]) -> ₩475,000 | D25: =SUBTOTAL(109,음식_표[어린이 한 명당 분량]) -> 34.5 | E25: =SUBTOTAL(109,음식_표[어른 한 명당 분량]) -> 65.5 | F25: =SUBTOTAL(109,음식_표[총 분량]) -> 2393 | G25: =SUBTOTAL(109,음식_표[1인분당 비용]) -> ₩6,916 | H25: =SUBTOTAL(109,음식_표[어린이 한 명당 비용]) -> ₩7,253 | I25: =SUBTOTAL(109,음식_표[어른 한 명당 비용]) -> ₩12,690

Sheet 기타 필수품
B3: 기타 필수품
B6: 장비 & 물품 | C6: 비용 | D6: 구매 여부 | E6: 참고
B7: 대관료 | C7: ₩250,000 | D7: 예
B8: 테이블보 | C8: ₩30,000 | D8: 예 | E8: 임대
B9: 테이블과 의자 | C9: ₩0 | E9: 대관료에 포함됨
B10: 음료 냅킨 | C10: ₩25,000
B11: 식사 냅킨 | C11: ₩20,000 | E11: 임대
B12: 테이블 서비스 | C12: ₩50,000 | E12: 임대
B13: 유리 그릇 | C13: ₩25,000 | E13: 임대
B14: 합계 | C14: =SUBTOTAL(109,예산_표_1[비용]) -> ₩400,000
B18: 장식 | C18: 비용 | D18: 구매 여부 | E18: 참고
B19: 풍선 | C19: ₩25,000
B20: 헬륨 탱크 | C20: ₩50,000 | E20: 임대
B21: 센터 피스 | C21: ₩100,000 | D21: 예 | E21: 총 10개
B22: 유리 화병 | C22: ₩0 | E22: 유영주에게 빌림
B23: 합계 | C23: =SUBTOTAL(109,예산_표_2[비용]) -> ₩175,000
B27: 기타 | C27: 비용 | D27: 구매 여부 | E27: 참고
B28: 초대장 | C28: ₩50,000 | D28: 예
B29: 발송 | C29: ₩60,000 | D29: 예
B30: 사진사 | C30: ₩125,000 | E30: 2시간(오후 2 - 4시)
B31: 답례품 | C31: ₩50,000
B32: 합계 | C32: =SUBTOTAL(109,예산_표_3[비용]) -> ₩285,000

Sheet 좌석 배치도
A1: 좌석 배치
AH35: *1평방 = 약 1평방피트
A36: 참고 | T36: =" 확인된 총 손님 수: "&ConfirmedGuests -> 확인된 총 손님 수: 46
T37: 다음 테이블 구성 중 아무것이나 사용할 수 있습니다.
U38: =ROUNDUP(ConfirmedGuests/6,0)&"개의 원형 54인치 테이블(좌석 6개)" -> 8개의 원형 54인치 테이블(좌석 6개)
U39: =ROUNDUP(ConfirmedGuests/8,0) &" 개의 원형 60인치 테이블(좌석 8개)" -> 6 개의 원형 60인치 테이블(좌석 8개)
U40: =ROUNDUP(ConfirmedGuests/10,0)&" 개의 원형 72인치 테이블(좌석 10개)" -> 5 개의 원형 72인치 테이블(좌석 10개)
U41: =ROUNDUP(ConfirmedGuests/6,0)& " 개의 정사각형 30인치 x 72인치 테이블(좌석 6개)" -> 8 개의 정사각형 30인치 x 72인치 테이블(좌석 6개)
U42: =ROUNDUP(ConfirmedGuests/8,0)&" 개의 정사각형 30인치 x 96인치 테이블(좌석 8개)" -> 6 개의 정사각형 30인치 x 96인치 테이블(좌석 8개)
T43: (원하는 테이블 사이 공간: 42인치)
